Cogmind - Beta 15 *** ADVENTURER MODE // 2025.05.16 @ 17:45:16 Player: Jack Result: Self-destructed Performance ------------- Evolutions (4) 2000 Regions Visited (6) 1200 Robots Destroyed (28) 140 Value Destroyed (700) 700 Prototype IDs (3) 60 Alien Tech Used (0) 0 Bonus (352) 352 TOTAL SCORE: 4452 Bonus ------- Follower Combat Kills 352 Cogmind --------- Core Integrity 441/850 Matter 297/300 Energy 100/100 System Corruption 4% Temperature Cool (0) Movement Core (100) Ox1 Location -6/Factory Parts ------- > --- POWER (1) -------- (None) > --- PROPULSION (4) --- (None) > --- UTILITY (8) ------ Armored Scrap Engine Improved Signal Interpreter > --- WEAPON (2) ------- Heavy Pick > --- INVENTORY (5) ---- Cooled Aerolev Unit Xenon Bombardment Thruster Advanced Signal Interpreter Proton Missile Launcher Blade Saw Peak State ------------ > --- POWER ------------ (None) > --- PROPULSION ------- Hovering Gravmag-Compact Exoskeleton > --- UTILITY ---------- Armored Scrap Engine Improved Signal Interpreter System Shield > --- WEAPON ----------- Proton Missile Launcher Heavy Pick > --- INVENTORY -------- Advanced Signal Interpreter Rocket Launcher [Rating: 41] Favorites ----------- Power None Propulsion Constructs Hover Unit Constructs Flight Unit Flight Unit Utility Improved Signal Interpreter Device Armored Scrap Engine Processor Improved Signal Interpreter Hackware System Shield Weapon Heavy Particle Cannon Energy Gun EM Pulse Gun Energy Cannon Heavy Particle Cannon Ballistic Gun High-powered Shotgun Launcher Rocket Launcher Piercing Weapon Heavy Pick Build | -11 -10 -9 -8 -8 -8 -6 ------- Run | Yrd Mat Mat Mat Sto Rec Fac Slots Evolved 8 | . . 2 2 . . 4 Power . | . . . . . . . Propulsion 2 | . . 1 1 . . . Utility 6 | . . 1 1 . . 4 Weapon . | . . . . . . . Parts Attached 14 | . 3 . 3 1 4 3 Power . | . . . . . . . Engine . | . . . . . . . Core . | . . . . . . . Reactor . | . . . . . . . Propulsion 1 | . . . . 1 . . Treads . | . . . . . . . Leg . | . . . . . . . Wheel . | . . . . . . . Hover . | . . . . . . . Flight 1 | . . . . 1 . . Utility 4 | . . . 2 . 1 1 Device 2 | . . . . . 1 1 Storage . | . . . . . . . Processor 1 | . . . 1 . . . Hackware 1 | . . . 1 . . . Protection . | . . . . . . . Artifact . | . . . . . . . Weapon 9 | . 3 . 1 . 3 2 Energy Gun 2 | . 2 . . . . . Energy Cannon 1 | . . . . . 1 . Ballistic Gun 3 | . 1 . 1 . 1 . Ballistic Cannon . | . . . . . . . Launcher 2 | . . . . . 1 1 Special Weapon . | . . . . . . . Impact Weapon . | . . . . . . . Slashing Weapon . | . . . . . . . Piercing Weapon 1 | . . . . . . 1 Special Melee Weapon . | . . . . . . . Unidentified Prototypes 1 | . . . . . 1 . Parts Lost 7 | . . . . 1 . 6 Power . | . . . . . . . Propulsion 5 | . . . . 1 . 4 Utility 2 | . . . . . . 2 Weapon . | . . . . . . . Highest Loss Streak 2 | . . . . 1 . 2 To Critical Strikes . | . . . . . . . Average Backups 3 | 1 3 5 4 4 2 2 Power . | . . . . . . . Propulsion 1 | . 1 3 3 3 1 . Utility . | . . . . . . . Weapon 1 | 1 2 2 1 . . 1 Tool/Special . | . . . . . . . Unused Backups 8 | . . . . . 4 4 Power . | . . . . . . . Propulsion 6 | . . . . . 4 2 Utility 1 | . . . . . . 1 Weapon 1 | . . . . . . 1 Tool/Special . | . . . . . . . Average Slot Usage (%) 29 | . 5 . 14 27 35 30 Flight 3 | . . . . 6 4 3 Device 5 | . . . . . 7 7 Processor 7 | . . . 3 9 9 6 Hackware 6 | . . . 6 9 9 4 Energy Cannon 2 | . . . . . 3 . Peak Build Rating 41 | . 2 . 8 8 35 41 Average Rating 24 | . . . 3 7 26 35 On Entrance 7 | . . . . 8 7 35 Naked Turns 218 | . 127 67 24 . . . Heaviest Build 7 | . 4 . 3 3 7 7 Greatest Support 40 | 3 3 3 3 4 28 40 Greatest Overweight (x) 2 | . 1 . . . 2 1 Average Overweight (x) . | . . . . . . . Largest Inventory Capacity 5 | 5 5 5 5 5 5 5 Average Capacity 5 | 5 5 5 5 5 5 5 Most Carried 5 | 3 5 5 5 5 5 5 Average Carried 3 | 2 3 5 4 4 2 2 Final Capacity 5 | 5 5 5 5 5 5 5 Final Carried 5 | 3 5 5 3 5 1 5 Scrap Engine Consumption 16 | . . . . . 8 8 Constructs Created 1 | . . . . . 1 . Constructs Modified 4 | . . . . . 1 3 Class Distribution -------------------- 65% | Hacker-Mutant 18% | Commander-Mutant 16% | Mutant Dominant Class ---------------- Mutant | -10/Materials Mutant | -9/Materials Hacker-Mutant | -8/Materials Commander-Mutant | -8/Storage Hacker-Mutant | -8/Recycling Hacker-Mutant | -6/Factory Resources | -11 -10 -9 -8 -8 -8 -6 ----------- Run | Yrd Mat Mat Mat Sto Rec Fac Matter Collected 534 | 134 32 . . 136 124 108 Remotely . | . . . . . . . Salvage Created 799 | . 42 . 15 . 262 480 Parts 53 | . 7 . 2 . 10 34 Haulers Intercepted . | . . . . . . . Recyclers Shooed 1 | . . . . . 1 . Parts Field Recycled . | . . . . . . . Retrieved Matter . | . . . . . . . Parts Self-Destructed . | . . . . . . . Prevented . | . . . . . . . Kills | -11 -10 -9 -8 -8 -8 -6 ------- Run | Yrd Mat Mat Mat Sto Rec Fac Combat Hostiles Destroyed 21 | . 3 . 1 . 4 13 Melee 5 | . . . . . . 5 Guns 6 | . 3 . 1 . 2 . Cannons 1 | . . . . . 1 . AOE 9 | . . . . . 1 8 Classes Destroyed 9 | . 1 . . . 3 5 Worker 3 | . . . . . . 3 Tunneler 1 | . . . . . . 1 Recycler 2 | . . . . . 1 1 Watcher 1 | . . . . . . 1 Swarmer 13 | . 3 . 1 . . 9 Cutter 2 | . . . . . . 2 Grunt 1 | . . . . . 1 . Sentry 3 | . . . . . 3 . Programmer 2 | . . . . . . 2 Best Kill Streak 4 | . 2 . 1 . 2 4 Combat Bots Only 4 | . 2 . 1 . 1 4 Max Kills in Single Turn 4 | . 1 . 1 . 1 4 Gunslinging . | . . . . . . . Exploded 4 | . . . . . 1 4 Melee 1 | . . . . . . 1 Uniques/NPCs Destroyed . | . . . . . . . Combat | -11 -10 -9 -8 -8 -8 -6 -------- Run | Yrd Mat Mat Mat Sto Rec Fac Hostile Shots Fired 505 | . 20 16 35 9 50 375 Missed 253 | . 6 5 14 3 21 204 Hits 252 | . 14 11 21 6 29 171 Melee 1 | . . . . . . 1 Projectile 251 | . 14 11 21 6 29 170 Critical Strikes 5 | . . 2 . . 2 1 Damage Taken 2564 | . 112 140 193 69 371 1679 Core 967 | . 77 140 144 32 165 409 Absorbed by Shields . | . . . . . . . Ignored by Resistances 754 | . 36 39 56 20 102 501 Regen/Repaired (Parts) 221 | . . . . . 100 121 Core Remaining (%) 68 | 100 69 65 . . 38 . Volleys Fired 30 | . 4 . 4 . 16 6 Largest 2 | . 2 . 2 . 1 1 Hottest 75 | . 60 . 60 . 75 39 Shots Fired 38 | . 8 . 8 . 16 6 Gun 26 | . 8 . 8 . 10 . Cannon 2 | . . . . . 2 . Launcher 10 | . . . . . 4 6 Special . | . . . . . . . Kinetic 18 | . 4 . 4 . 10 . Thermal 2 | . . . . . 2 . Explosive 9 | . . . . . 4 5 Electromagnetic 9 | . 4 . 4 . . 1 Robot Hit Streak 13 | . 3 . 1 . 13 . Robot Miss Streak 2 | . 1 . 2 . 2 1 Penetration Max . | . . . . . . . Secondary Targets . | . . . . . . . Shots Hit Robots 35 | . 5 . 2 . 14 14 Core Hits 34 | . 3 . 1 . 9 21 Critical Kills . | . . . . . . . Critical Parts Destroyed . | . . . . . . . Critical Strikes 2 | . . . 1 . . 1 Corrupt 1 | . . . 1 . . . Impale 1 | . . . . . . 1 Melee Attacks 23 | . . . . . . 23 Impact . | . . . . . . . Slashing . | . . . . . . . Piercing 23 | . . . . . . 23 Sneak Attacks 6 | . . . . . . 6 Combat Hostiles . | . . . . . . . Follow-up Attacks . | . . . . . . . Damage Inflicted 1976 | . 72 . 23 . 377 1504 Guns 322 | . 72 . 22 . 228 . Cannons 50 | . . . . . 50 . Explosions 919 | . . . . . 94 825 Melee 679 | . . . . . . 679 Ramming 6 | . . . 1 . 5 . Kinetic 268 | . 40 . . . 228 . Thermal 528 | . . . . . 50 478 Explosive 431 | . . . . . 94 337 Electromagnetic 64 | . 32 . 22 . . 10 Impact . | . . . . . . . Slashing . | . . . . . . . Piercing 679 | . . . . . . 679 Highest Corruption 3 | . . . . . . 3 Average Corruption 2 | . . . . . . 2 Corruption Purged . | . . . . . . . Corruption Blocked . | . . . . . . . Effects 7 | . . . . . . 7 Message Errors 1 | . . . . . . 1 Matter Fused 3 | . . . . . . 3 Heat Flow Errors 1 | . . . . . . 1 Energy Discharges 1 | . . . . . . 1 Data Loss (minor) 1 | . . . . . . 1 Overload Shots . | . . . . . . . Overflow Damage 89 | . . . . . . 89 Projectiles . | . . . . . . . Explosions 38 | . . . . . . 38 Melee 51 | . . . . . . 51 Knockbacks . | . . . . . . . Impact . | . . . . . . . Kinetic . | . . . . . . . Secondary . | . . . . . . . Self-Inflicted Damage 96 | . . . . . 2 94 Shots 3 | . . . . . . 3 Rammed 3 | . . . 1 . 2 . Targets Rammed 3 | . . . 1 . 2 . Kicked . | . . . . . . . Crushed . | . . . . . . . Highest Temperature 174 | . . . . . 33 174 Average Temperature 54 | . . . . . 16 100 Received Heat Transfer 714 | . 48 90 63 45 231 237 Siege Activations . | . . . . . . . Martial Activations . | . . . . . . . Shielding Activations . | . . . . . . . Robots Disrupted . | . . . . . . . Combat Hostiles . | . . . . . . . Robots Corrupted . | . . . . . . . Combat Hostiles . | . . . . . . . Parts Fried . | . . . . . . . Impact Corruptions . | . . . . . . . Robots Melted . | . . . . . . . Combat Hostiles . | . . . . . . . Parts Melted 2 | . . . . . . 2 Heat Transferred 424 | . . . . . 74 350 Parts Sabotaged . | . . . . . . . Parts Stolen . | . . . . . . . Parts Stripped . | . . . . . . . Power Chain Reactions . | . . . . . . . Alert | -11 -10 -9 -8 -8 -8 -6 ------- Run | Yrd Mat Mat Mat Sto Rec Fac Maximum Alert Level 1 | . . . . . . 1 Low Security (%) 93 | 100 100 100 100 100 100 79 Level 1 6 | . . . . . . 20 Level 2 . | . . . . . . . Level 3 . | . . . . . . . Level 4 . | . . . . . . . Level 5 . | . . . . . . . High Security . | . . . . . . . Max Security . | . . . . . . . Peak Influence 298 | . 91 51 130 185 56 298 Initial 43 | . . 21 18 43 19 . Average 49 | . 35 28 32 86 5 123 Influence Increases 1477 | . 101 60 147 318 153 698 Destroy 0b10 Robot/C 580 | . 60 . 20 160 80 260 Destroy 0b10 Robot/NC 40 | . . . . 5 5 30 Destroy Leader 112 | . 10 . . 50 . 52 Allied During Kill 51 | . . . . 51 . . Successful Hack 21 | . . . 7 7 7 . Disable Machine 27 | . . . . . . 27 Destroy Structure 121 | . 1 . . . 46 74 Partial Spotted 45 | . . 15 . 15 . 15 Lose Combat Pursuer 480 | . 30 45 120 30 15 240 Influence Decreases 1209 | . 40 70 78 377 214 430 Entered New Map 192 | . . 40 33 77 42 . Time Decay 733 | . 40 30 45 90 158 370 Lost Part 70 | . . . . 10 . 60 Lost Ally 214 | . . . . 200 14 . Squads Dispatched 11 | . . . 1 4 . 6 Investigation 2 | . . . . 2 . . Extermination 2 | . . . . . . 2 Reinforcement 5 | . . . 1 . . 4 Assault . | . . . . . . . Garrison 2 | . . . . 2 . . Intercept . | . . . . . . . Searches Triggered . | . . . . . . . Construction Impeded 1 | . . . . . . 1 Haulers Reinforced . | . . . . . . . Active Scanning Responses . | . . . . . . . Cargo Convoy Interrupts . | . . . . . . . Stealth | -11 -10 -9 -8 -8 -8 -6 --------- Run | Yrd Mat Mat Mat Sto Rec Fac Distress Signals 5 | . 1 1 1 . . 2 Communications Jammed . | . . . . . . . Distress Signals . | . . . . . . . Times Spotted 104 | . 11 10 19 10 14 40 Peak Tracking Total 12 | . 5 9 12 5 5 9 Tactical Retreats 17 | . 1 1 2 1 4 8 Traps | -11 -10 -9 -8 -8 -8 -6 ------- Run | Yrd Mat Mat Mat Sto Rec Fac Traps Triggered 2 | . . 1 . . . 1 Indirectly . | . . . . . . . Trap Hack Attempts . | . . . . . . . Triggered . | . . . . . . . Disarmed . | . . . . . . . Reprogrammed . | . . . . . . . Reused . | . . . . . . . Traps Extracted . | . . . . . . . Installed . | . . . . . . . Triggered . | . . . . . . . Machines | -11 -10 -9 -8 -8 -8 -6 ---------- Run | Yrd Mat Mat Mat Sto Rec Fac Machines Disabled 3 | . . . . . . 3 Max in Single Turn 3 | . . . . . . 3 Machines Repaired . | . . . . . . . Machines Dismantled . | . . . . . . . Machines Sabotaged . | . . . . . . . Overloaded Fab Kills . | . . . . . . . Hacking | -11 -10 -9 -8 -8 -8 -6 --------- Run | Yrd Mat Mat Mat Sto Rec Fac Machines Accessed 8 | . 1 1 1 3 2 . Terminals 6 | . 1 1 1 2 1 . Fabricators . | . . . . . . . Repair Stations . | . . . . . . . Recycling Units . | . . . . . . . Scanalyzers . | . . . . . . . Garrison Access 1 | . . . . 1 . . Total Hacks 13 | . 1 2 1 5 4 . Successful 7 | . 1 1 1 1 3 . Failed 6 | . . 1 . 4 1 . Catastrophic 2 | . . . . 2 . . Database Lockouts . | . . . . . . . Manual 11 | . 1 2 1 5 2 . Terminals 9 | . 1 2 1 3 2 . Fabricators . | . . . . . . . Repair Stations . | . . . . . . . Recycling Units . | . . . . . . . Scanalyzers . | . . . . . . . Garrison Access 2 | . . . . 2 . . Terminal Hacks 7 | . 1 1 1 1 3 . Part Schematic 1 | . . . . . 1 . Branch Access Points 4 | . 1 1 1 1 . . Release Object 2 | . . . . . 2 . Fabricator Hacks . | . . . . . . . Repair Station Hacks . | . . . . . . . Recycling Unit Hacks . | . . . . . . . Scanalyzer . | . . . . . . . Garrison Access Hacks . | . . . . . . . Unauthorized Hacks . | . . . . . . . Terminals . | . . . . . . . Fabricators . | . . . . . . . Repair Stations . | . . . . . . . Recycling Units . | . . . . . . . Scanalyzers . | . . . . . . . Garrison Access . | . . . . . . . Data Cores Recovered . | . . . . . . . Used . | . . . . . . . Hacking Detections 6 | . . 1 1 3 1 . Full Trace Events 2 | . . . . 2 . . Feedback Events . | . . . . . . . Feedback Blocked . | . . . . . . . Robot Schematics Acquired . | . . . . . . . Robots Built . | . . . . . . . Authchips . | . . . . . . . Time . | . . . . . . . Total Robot Build Rating . | . . . . . . . Part Schematics Acquired 1 | . . . . . 1 . Parts Built . | . . . . . . . Authchips . | . . . . . . . Time . | . . . . . . . Total Part Build Rating . | . . . . . . . Parts Repaired . | . . . . . . . Time . | . . . . . . . Parts Recycled . | . . . . . . . Recycled Matter . | . . . . . . . Retrieved Matter . | . . . . . . . Retrieved Components . | . . . . . . . Parts Scanalyzed . | . . . . . . . Part Schematics Acquired . | . . . . . . . Parts Damaged . | . . . . . . . Bothacking | -11 -10 -9 -8 -8 -8 -6 ------------ Run | Yrd Mat Mat Mat Sto Rec Fac Used RIF Installer . | . . . . . . . Robots Hacked . | . . . . . . . Non-combat . | . . . . . . . Combat . | . . . . . . . Robot Hacks Applied . | . . . . . . . Relay Couplers Released . | . . . . . . . Fabnet Peak Effective % . | . . . . . . . Robots Rewired 11 | . . . . . 11 . Allies Hacked . | . . . . . . . Hacks Repelled . | . . . . . . . Allies | -11 -10 -9 -8 -8 -8 -6 -------- Run | Yrd Mat Mat Mat Sto Rec Fac Total Allies 21 | . . . . 10 11 . Largest Group 10 | . . . . 10 9 . Highest-Rated Group 173 | . . . . 173 137 . Highest-Rated Ally 34 | . . . . 29 34 . Total Orders . | . . . . . . . Ally Attacks 80 | . . . . 72 8 . Total Damage 1137 | . . . . 966 171 . Kills 11 | . . . . 9 2 . Allies Corrupted . | . . . . . . . Allies Melted . | . . . . . . . Intel | -11 -10 -9 -8 -8 -8 -6 ------- Run | Yrd Mat Mat Mat Sto Rec Fac Active Infowar (turns) 118 | . . . . . . 118 Sensors 118 | . . . . . . 118 Robot Analysis Total . | . . . . . . . Derelict Logs Recovered . | . . . . . . . Drone Launches . | . . . . . . . Drone Recoveries . | . . . . . . . Exploration | -11 -10 -9 -8 -8 -8 -6 ------------- Run | Yrd Mat Mat Mat Sto Rec Fac Turns Passed 2730 | 19 158 67 105 190 1365 826 Spaces Moved 3180 | 31 205 133 175 235 1234 1167 Core 1233 | 31 205 133 175 81 598 10 Treads . | . . . . . . . Legs . | . . . . . . . Wheels 229 | . . . . . . 229 Hover 213 | . . . . . . 213 Flight 1505 | . . . . 154 636 715 Fastest Speed 40 | 50 50 50 50 40 50 60 Average Speed 58 | 50 50 50 50 43 63 60 Slowest Speed 150 | 50 100 50 50 50 150 100 Overloaded Moves . | . . . . . . . Propulsion Burnouts . | . . . . . . . Robots Hopped 13 | . . . . 3 5 5 Potential Cave-ins . | . . . . . . . Cave-ins Triggered . | . . . . . . . Exploration Rate (%) 35 | 3 29 21 26 39 95 36 Regions Visited 6 Branch Regions 2 Pre-discovered Areas . | . . . . . . . Known Exits Taken 3 | . . . 1 1 1 . Unknown Exits Taken 3 | 1 1 1 . . . . Scrap Searched . | . . . . . . . Spaces Dug 5 | . . . . . . 5 Terrain Destroyed 140 | . . . . . 38 102 Melee 5 | . . . . . . 5 Projectile . | . . . . . . . AOE 135 | . . . . . 38 97 Terrain Rammed . | . . . . . . . Walls Destroyed . | . . . . . . . Machines Disabled . | . . . . . . . Actions | -11 -10 -9 -8 -8 -8 -6 --------- Run | Yrd Mat Mat Mat Sto Rec Fac Total 3952 | 33 253 132 183 321 1799 1231 Wait 619 | . 31 . . 82 482 24 Move 3148 | 30 204 132 174 228 1223 1157 Hop 13 | . . . . 3 5 5 Pick Up 15 | 3 4 . . 3 . 5 Fast Attach 9 | . . . 2 . 4 3 Attach 11 | . 4 . 2 1 1 3 Detach 10 | . 4 . . 2 1 3 Swap . | . . . . . . . Drop 12 | . 2 . . 2 6 2 Fire 30 | . 4 . 4 . 16 6 Melee 23 | . . . . . . 23 Ram 3 | . . . 1 . 2 . Kick . | . . . . . . . Crush . | . . . . . . . Escape Stasis . | . . . . . . . Rewire 59 | . . . . . 59 . Trap . | . . . . . . . Miscellaneous . | . . . . . . . Route ------- -11/Scrapyard -10/Materials (discovered 3 exits: *Mat / *Min x2) -9/Materials (discovered 2 exits: *Mat / Min) -8/Materials (discovered 2 exits: *Sto x2) -8/Storage -8/Recycling -6/Factory (discovered 2 exits: *Fac / *Low) History --------- Turn | Location | Event 8 | -11/Scrapyard | Discovered new exit (range 15) 20 | -11/Scrapyard | Entered Materials 55 | -10/Materials | Discovered new exit (range 7) 152 | -10/Materials | Identified exit to Mines 176 | -10/Materials | Discovered new exit (range 6) 178 | -10/Materials | Entered another Materials area 178 | -9/Materials | Evolved 2 slots: Propulsion x1, Utility x1 186 | -9/Materials | Identified exit to Mines 241 | -9/Materials | Discovered new exit (range 9) 245 | -9/Materials | Entered another Materials area 245 | -8/Materials | Evolved 2 slots: Propulsion x1, Utility x1 296 | -8/Materials | Discovered new exit (range 14) 304 | -8/Materials | Identified exit to Storage 350 | -8/Materials | Entered Storage 400 | -8/Storage | Assisted by bots powering up and referring to "LRC-V3" 428 | -8/Storage | Garrison activated, responded to threat 504 | -8/Storage | Identified exit to Recycling 538 | -8/Storage | Used back door to open Recycling access 540 | -8/Storage | Entered Recycling 541 | -8/Recycling | Lost 10 allies 759 | -8/Recycling | Discovered new exit (range 16) 769 | -8/Recycling | Scanned before Scraplab entrance 777 | -8/Recycling | Angered Scraplab inhabitants 778 | -8/Recycling | Found Prototype Device 778 | -8/Recycling | Identified Scrap Engine 786 | -8/Recycling | Core integrity fell below 50% 800 | -8/Recycling | Build established: Hacker-Mutant 1784 | -8/Recycling | Build established: Commander-Mutant 1857 | -8/Recycling | Lost 3 allies 1904 | -8/Recycling | Identified exit to Factory 1905 | -8/Recycling | Entered Factory 1905 | -6/Factory | Evolved 4 slots: Utility x4 1935 | -6/Factory | Lost 4 allies 2181 | -6/Factory | Build established: Hacker-Mutant 2577 | -6/Factory | Discovered new exit (range 8) 2651 | -6/Factory | Identified exit to Factory 2660 | -6/Factory | Discovered new exit (range 13) 2675 | -6/Factory | Identified exit to Lower Caves 2712 | -6/Factory | Spotted B-75 Beast 2731 | -6/Factory | Self-destructed Last Messages --------------- O-16 Technician locks terminal. Acquired Xenon Bombardment Thruster. Dropped Rocket Launcher. Acquired Prototype Hover Unit. R-10 Processor collects Rocket Launcher. System corrupted: Component data lost. System corrupted: Matter fused (-8). K-01 Serf cleans the Construction Platform. O-24 Administrator distress signal alerts nearby ally. O-24 Administrator: "IFF HANDSHAKE FAILED. SECURING TERMINAL." K-01 Serf cleans the Construction Platform. Imp. Sensor Array destroyed. ALERT: Potential suspicious activity detected, Programmers report to Factory Zone 6P. K-01 Serf cleans the Construction Platform. O-24 Administrator uses terminal to summon reinforcements. ALERT: Hostiles spotted, dispatching reinforcements to Terminal F001. O-24 Administrator locks terminal. Hovering Gravmag-Compact Exoskeleton destroyed. Arm. Scrap Engine damaged due to network destabilization (-6). Map ----- +----------------------------------------------------+ | ?????????????????????????????????????????????????? | | ?????????????????????????????????????????????????? | | ?????????????????????????????????????????????????? | | ?????????????????????????????????????????????????? | | ?????????????????????????????????????????????????? | | ?????????????????????????????????????????????????? | | ?????????????????????????????????????????????????? | | ?????????????????????????????????????????????????? | | ?????????????????????????????????????????????????? | | ?????????????????????????????????????????????????? | | ????????????????????????? ???????????????????????? | | ????????????????????????? ???????????????????????? | | ????????????????????????? ???????????????????????? | | ????????????????????????? ???????????????????????? | | ?????????????????????????R???????????????????????? | | ????????????????????????? ???????????????????????? | | ????????????????????????? ???????????????????????? | | ????????????????????????# #??????????????????????? | | ????????????????????????# #??????????????????????? | | ????????????????????????# ??????????????????????? | | ????????????????????????# #??????????????????????? | | ????????????????????????# #??????????????????????? | | ????????????????????????# #??????????????????????? | | ????????????????????????# #??????????????????????? | | ????????????????????????# #??????????????????????? | | ????????????????????????#@#??????????????????????? | | ????????????????????????# #??????????????????????? | | ????????????????????????# #??????????????????????? | | ????????????????????????# #??????????????????????? | | ??????????????????#?????# #??????????????????????? | | ??????????????????# #####p#??????????????????????? | | ??????????????????# #??????????????????????? | | ??????????????????# #??????????????????????? | | ????????????????+## p#########+###??????????? | | ??????????? #####??????? | | ?????????? """"??????? | | ??????????? ""T"" ??? | | ??????????? ? | | ???????????? #####+############# """"""" #??? | | ????????????????????????????????# """"""???????? | | ????????????????????????????????# """"""" ?? | | ????????????????????????????????# """"""" #? | | ????????????????????????????????# #??? | | ????????????????????????????????# #??? | | ????????????????????????????????# ![[ #??? | | ???????????????????????##########" [[[ #??? | | ???????????????????????# # [[[ #??? | | ???????????????????????# """" * # +??? | | ??????????????????####?# """" # """"""" #??? | | ??????????????????? #?# """" # """"""" #??? | +----------------------------------------------------+ Best States ------------- Heat Dissipation 37 Energy Generation 5 Energy Capacity 100 Matter Stores 300 Matter Capacity 300 Sight Range 16 Robot Scan Range 15 Terrain Scan Density 10 Resistance: KI 20 Resistance: TH 20 Resistance: EX 20 Resistance: EM 20 Resistance: I 20 Resistance: S 20 Resistance: P 20 Evasion (%) 62 Offensive Hacking 10 Defensive Hacking 10 Item Schematics ----------------- Hacking Suite | -8/Recycling | Hacked Robot Schematics ------------------ None Fabricated ------------ Nothing Repaired ---------- Nothing Alien Tech Used ----------------- None Achievements -------------- None Challenges ------------ None Game ------ Seed ElectrostormAblativePod Manual? 0 Play Time 00:26:02 Cumulative 138.3 hours Start 2025.05.16 @ 07:43:07 End 2025.05.16 @ 17:45:16 Sessions 3 Manual Loads 0 Difficulty Adventurer Special Mode None Game No. 157 Rogue 18 Adventurer 128 Explorer 11 Win Type - Total 31 Types 9/0/11/0/6/0/4/1/0/0 Lore% 45 Gallery% 43 Achievement% 64 Wizard Run 0 Options --------- Layout 0 ASCII 0 Keyboard 0 Movement Numpad Keybinds 0 Fullscreen 2 Font 12/Smallcaps Map View 83x54 Zoom Use 0% Tactical HUD 0 Map Filters NONE Filters NONE Steam 1 RUN: c6be4d18-df0f-4bec-a753-f377dc6152ae